bitfinex/quotes_ETHUSD_20260217
["timestamp","ask_amount","ask_price","bid_price","bid_amount"]
[1771315223033,2.17224999,1988.7,1988.2,1.25943428]
[1771315223240,2.17224999,1988.7,1988.2,1.41489095]
[1771315223642,2.17224999,1988.7,1988.2,1.41589095]
[1771315223812,0.0011,1988.5,1988.2,1.41589095]
[1771315225447,0.0011,1988.5,1988.2,0.15645667]
[1771315226140,0.0011,1988.5,1988.3,1.25943428]
[1771315226343,0.0011,1988.5,1988.4,0.15545667]
[1771315226543,0.0011,1988.7,1988.4,0.15545667]
[1771315226840,0.0011,1988.7,1988.5,1.25833428]
[1771315227045,0.0011,1988.7,1988.2,1.41386202]
[1771315227046,0.0011,1988.7,1988.3,1.25833428]
[1771315227649,0.0011,1988.7,1988.4,1.41379095]
[1771315227851,0.0011,1989.0,1988.6,0.15545667]
[1771315228343,0.0011,1989.0,1988.7,1.25833428]
[1771315228548,0.0011,1989.0,1988.4,2.67103797]
[1771315228728,0.0011,1989.0,1988.5,1.25833428]
[1771315228930,0.0011,1989.0,1988.6,0.15545667]
[1771315229126,0.0011,1989.0,1988.6,1.41379095]
[1771315229329,0.0011,1989.0,1988.7,1.25833428]
[1771315229536,0.0011,1989.0,1988.8,1.25833428]
[1771315229732,0.0011,1989.0,1988.7,1.25833428]
[1771315230252,0.0011,1989.0,1988.8,1.25833428]
[1771315230423,0.0011,1989.0,1988.7,1.25833428]
[1771315230822,0.0011,1989.0,1988.8,1.25833428]
[1771315231148,0.0011,1989.0,1988.8,1.41379095]
[1771315231949,0.0011,1989.0,1988.8,0.15545667]
[1771315232541,0.0011,1989.0,1988.9,1.25833428]
[1771315232740,0.0011,1989.0,1988.9,1.41379095]
[1771315233619,0.0011,1989.2,1989.0,0.15545667]
[1771315233819,0.0011,1989.4,1989.0,0.15545667]
[1771315234025,0.0011,1989.4,1989.2,0.15545667]
[1771315234455,0.0011,1989.6,1989.3,2.66831442]
[1771315235235,0.0011,1989.6,1989.3,1.41218014]
[1771315236055,0.0011,1989.6,1989.3,0.15545667]
[1771315236730,0.0011,1989.6,1989.3,1.41217713]
[1771315239627,0.0011,1989.6,1989.4,1.25613428]
[1771315242456,0.0011,1989.6,1989.5,1.25613428]
[1771315242652,0.0011,1989.6,1989.4,1.25613428]
[1771315244940,0.0011,1989.6,1989.4,2.51278961]
[1771315245333,0.0011,1989.6,1989.4,1.25613428]
[1771315245838,0.0011,1989.6,1989.4,2.51278063]
[1771315246438,0.0011,1989.6,1989.5,1.25613428]
[1771315247447,0.0011,1989.6,1989.4,1.25664635]
[1771315247650,0.0011,1989.6,1989.5,1.25613428]
[1771315248969,0.0011,1989.6,1989.3,1.41213031]
[1771315249173,0.0011,1989.6,1989.4,1.25613428]
[1771315249463,0.0011,1989.6,1989.4,0.001]
[1771315249667,0.0011,1989.5,1989.4,0.001]
[1771315251275,0.0011,1989.5,1989.4,1.25766029]
[1771315251465,0.0011,1989.5,1989.4,2.51379457]
[1771315252444,0.0011,1989.8,1989.6,0.15545667]
[1771315252960,0.0011,1989.8,1989.7,1.25613428]
[1771315253156,0.0011,1990.0,1989.7,1.41192749]
[1771315253352,0.38609766,1990.3,1989.8,1.25503428]
[1771315254271,2.16607101,1990.4,1989.9,1.25503428]
[1771315254272,0.91,1990.4,1989.9,1.25503428]
[1771315254470,1.71493248,1990.4,1990.0,1.25503428]
[1771315254682,1.71493248,1990.4,1989.9,1.25503428]
[1771315255374,1.71493248,1990.4,1989.8,1.484615]
[1771315255578,1.71493248,1990.4,1989.9,1.25503428]
[1771315257073,0.45889766,1990.4,1989.9,1.25503428]
[1771315257277,5.02370654,1990.6,1990.0,1.48329095]
[1771315257278,0.45889766,1990.6,1990.0,1.48329095]
[1771315257577,0.45889766,1990.6,1990.0,1.2562654]
[1771315257578,0.45889766,1990.5,1990.0,1.2562654]
[1771315258474,1.25591453,1990.6,1990.0,1.48452207]
[1771315258685,1.25582438,1990.8,1990.1,1.48329095]
[1771315259177,0.45889766,1990.7,1990.1,1.48329095]
[1771315259657,5.93796006,1990.9,1990.1,1.48329095]
[1771315259658,0.003,1990.9,1990.3,0.22825667]
[1771315260054,0.46189766,1990.9,1990.3,0.22825667]
[1771315260380,0.003,1990.9,1990.4,1.48329095]
[1771315260584,0.003,1991.1,1990.8,0.22825667]
[1771315261008,0.003,1991.2,1990.9,1.48329095]
[1771315261326,0.45889766,1991.4,1990.8,1.25503428]
[1771315261587,1.25546125,1991.3,1990.7,1.48329095]
[1771315261749,0.45889766,1991.2,1990.8,1.25503428]
[1771315261952,0.45889766,1991.2,1990.5,2.37718512]
[1771315262189,0.45889766,1991.2,1990.6,1.25503428]
[1771315262496,0.45889766,1991.2,1990.6,1.48329095]
[1771315262656,1.25656125,1991.3,1990.6,1.48329095]
[1771315262851,1.25656125,1991.3,1990.7,1.25503428]
[1771315263397,0.45889766,1991.2,1990.6,0.22825667]
[1771315263561,0.45889766,1991.2,1990.7,1.25503428]
[1771315263886,0.45889766,1991.0,1990.4,1.25503428]
[1771315264092,0.45889766,1991.0,1990.3,1.25503428]
[1771315264292,0.45889766,1991.0,1990.3,2.51111947]
[1771315264490,1.25558736,1991.1,1990.4,1.48329095]
[1771315264696,0.45889766,1991.2,1990.5,0.22825667]
[1771315264870,0.45889766,1991.1,1990.5,1.25503428]
[1771315265082,0.45889766,1991.1,1990.3,6.67324378]
[1771315265288,0.45889766,1991.1,1990.4,1.48329095]
[1771315265723,1.71451124,1991.1,1990.5,2.51100011]
[1771315266021,1.71451124,1991.1,1990.6,1.25503428]
[1771315266312,1.25561358,1991.1,1990.6,1.25503428]
[1771315266506,1.25561358,1991.1,1990.5,1.4842225]
[1771315266719,0.0011,1991.3,1990.6,1.48329095]
[1771315266889,2.62745968,1991.3,1990.6,1.48329095]
[1771315267387,1.37199766,1991.3,1990.6,1.48329095]
[1771315267608,0.45999766,1991.3,1990.6,1.48329095]
[1771315267784,1.71546337,1991.3,1990.7,1.25583965]
[1771315267989,0.0011,1991.3,1990.7,1.48409632]
[1771315268185,0.0011,1991.3,1990.8,1.48329095]
[1771315268589,0.006,1991.5,1990.9,0.22825667]
[1771315269198,0.006,1991.5,1991.1,0.22825667]
[1771315269786,0.006,1991.5,1990.9,1.48393535]
[1771315269988,0.006,1991.5,1990.7,6.30915859]
[1771315269989,0.46489766,1991.5,1990.7,1.48405855]
[1771315270311,0.46489766,1991.5,1990.8,0.22825667]
[1771315270478,0.006,1991.5,1990.8,0.22825667]
[1771315271006,0.46489766,1991.5,1990.8,0.22825667]
[1771315271696,1.7202723,1991.5,1990.8,1.48397207]
[1771315272211,1.7202723,1991.5,1990.8,0.22825667]
[1771315272414,0.45889766,1991.4,1990.8,0.22825667]
[1771315272631,0.45889766,1991.4,1990.5,5.91572996]
[1771315272632,0.45889766,1991.4,1990.5,2.14793741]
[1771315272906,0.45889766,1991.2,1990.3,1.25606443]
[1771315273086,0.45889766,1991.2,1990.2,0.905]
[1771315273881,0.45889766,1991.0,1990.2,0.905]
[1771315274085,0.45889766,1991.0,1990.1,0.745]
[1771315274308,0.45889766,1991.0,1990.1,2.0012117]
[1771315274520,0.45889766,1991.0,1990.2,0.22825667]
[1771315274810,1.37089766,1991.0,1990.2,0.22825667]
[1771315275011,1.37089766,1991.0,1990.6,0.001]
[1771315275911,1.25571349,1990.9,1990.6,0.001]
[1771315276389,2.62657985,1991.0,1990.6,0.001]
[1771315277630,0.45839179,1990.9,1990.6,0.001]
[1771315278189,1.25577657,1990.8,1990.6,0.001]
[1771315284303,2.6261529,1990.9,1990.3,0.18125667]
[1771315284830,0.912,1990.9,1990.3,0.18125667]
[1771315285125,2.167723,1990.9,1990.3,0.18125667]
[1771315285331,2.62611479,1990.9,1990.3,0.18125667]
[1771315288436,2.62611479,1990.9,1990.7,0.001]
[1771315292035,2.62611479,1990.9,1990.5,0.001]
[1771315292447,0.45839179,1990.8,1990.5,0.001]
[1771315293241,0.45281586,1990.8,1990.5,0.001]
[1771315293429,1.70863875,1990.8,1990.5,0.001]
[1771315294243,2.16774744,1990.9,1990.5,0.001]
[1771315294919,1.25574744,1990.9,1990.5,0.001]
[1771315295137,0.917,1990.8,1990.5,0.001]
[1771315296847,2.17283012,1990.8,1990.5,0.001]
[1771315297231,0.917,1990.8,1990.5,0.001]
[1771315298642,2.17371434,1990.9,1990.5,0.1878326]
[1771315299720,5.4805071,1991.2,1990.6,0.1868326]
[1771315299721,1.71395742,1991.2,1990.6,0.1868326]
[1771315300045,0.918,1991.1,1990.6,0.1868326]
[1771315300221,0.918,1991.1,1990.6,0.1878326]
[1771315300416,0.45949179,1991.3,1990.6,0.1878326]
[1771315300621,0.0011,1990.8,1990.6,0.1878326]
[1771315300825,0.0011,1990.8,1990.7,1.25583965]
[1771315301050,0.0011,1990.8,1990.7,1.44267225]
[1771315305346,0.0011,1990.8,1990.7,0.1868326]
[1771315306063,0.0011,1991.1,1990.7,0.1868326]
[1771315306262,0.0011,1991.3,1990.8,0.1868326]
[1771315306435,0.0011,1991.2,1990.8,0.1868326]
[1771315307456,0.0011,1991.1,1990.8,0.1868326]
[1771315308047,0.0011,1991.1,1990.9,1.25571349]
[1771315309041,0.0011,1991.1,1990.9,1.44254609]
[1771315309862,0.0011,1991.1,1991.0,0.1868326]
[1771315310466,0.0011,1991.1,1991.0,1.44248302]
[1771315310673,0.0011,1991.1,1991.0,1.25565042]
[1771315310972,0.0011,1991.1,1991.0,1.44248302]
[1771315311470,0.0011,1991.1,1991.0,0.1868326]
[1771315311671,0.49304451,1991.2,1990.6,1.2568942]
[1771315311968,0.49304451,1991.2,1990.6,1.4437268]
[1771315312170,1.74858187,1991.2,1990.6,1.4437268]
[1771315312774,0.49304451,1991.2,1990.6,1.4437268]
[1771315312939,0.0011,1991.3,1990.7,0.1868326]
[1771315313143,0.0011,1991.2,1990.7,0.1868326]
[1771315313461,0.0011,1991.2,1990.9,0.1868326]
[1771315313645,0.0011,1991.0,1990.9,0.1868326]
[1771315313846,0.0011,1991.1,1990.9,0.1868326]
[1771315314146,0.0011,1991.3,1990.8,0.887]
[1771315314147,0.0011,1991.3,1991.0,0.1868326]
[1771315314349,0.0011,1991.3,1991.2,0.1868326]
[1771315316886,0.0011,1991.4,1991.3,0.1868326]
[1771315317041,0.1372051,1991.6,1991.3,0.1868326]
[1771315317242,1e-08,1991.6,1991.4,0.1868326]
[1771315317876,0.94016918,1992.0,1991.4,0.1868326]
[1771315318072,0.00410001,1991.9,1991.4,0.1868326]
[1771315318895,0.94016918,1992.0,1991.6,0.1868326]
[1771315319074,1.74765157,1992.7,1991.8,0.1868326]
[1771315319252,0.49304451,1992.4,1991.7,0.89]
[1771315319453,7.58009147,1992.7,1991.8,0.1868326]
[1771315319776,0.49714452,1992.6,1991.8,0.1868326]
[1771315319978,0.49714452,1992.6,1991.7,0.89]
[1771315320466,0.49714452,1992.6,1991.7,1.0768326]
[1771315320989,0.49714452,1992.6,1991.7,0.1868326]
[1771315321271,0.49304451,1992.2,1991.4,1.44219017]
[1771315321476,0.49304451,1992.2,1991.4,2.18219017]
[1771315321682,0.49304451,1992.2,1991.5,0.1868326]
[1771315321871,0.00410001,1992.1,1991.5,0.1868326]
[1771315322070,0.49714452,1992.4,1991.5,0.1868326]
[1771315322250,0.00410001,1992.4,1991.5,0.1868326]
[1771315323356,0.00410001,1992.4,1991.7,0.1868326]
[1771315325263,0.00410001,1992.3,1991.8,1.25514609]
[1771315325470,1.25874548,1992.6,1991.9,0.1868326]
[1771315325877,0.0011,1992.1,1991.9,0.1868326]
[1771315327557,0.0011,1992.1,1992.0,1.25502008]
[1771315327799,0.0011,1992.1,1992.0,1.44185268]
[1771315330085,0.0011,1992.1,1991.7,5.02058439]
[1771315330086,0.00520001,1992.1,1991.7,0.1868326]
[1771315330282,0.00520001,1992.1,1991.7,5.20755253]
[1771315332093,0.00520001,1992.1,1991.7,5.91671993]
[1771315332860,0.00520001,1992.1,1991.7,2.15120911]
[1771315334087,0.00520001,1992.1,1991.1,0.1878326]
[1771315334088,0.46967594,1992.0,1991.1,0.1878326]
[1771315334386,0.46967594,1991.8,1991.1,0.001]
[1771315334688,0.00410001,1991.9,1991.2,5.4063844]
[1771315334896,0.00410001,1991.9,1991.5,0.1868326]
[1771315335057,0.00410001,1991.9,1991.4,0.897]
[1771315335262,0.47377595,1991.9,1991.4,0.897]
[1771315335774,0.00410001,1991.9,1991.4,0.897]
[1771315336089,0.00410001,1991.9,1991.4,1.0838326]
[1771315336489,0.00410001,1991.9,1991.5,1.25533517]
[1771315336682,0.00410001,1991.9,1991.5,1.44216777]
[1771315337585,0.00410001,1991.8,1991.5,1.44216777]
[1771315337784,0.00410001,1992.0,1991.5,1.44216777]
[1771315338572,0.00410001,1992.0,1991.5,1.44316777]
[1771315338990,0.0011,1992.1,1991.5,1.44316777]
[1771315339171,0.00410001,1992.0,1991.5,1.44316777]
[1771315341775,0.0011,1992.1,1991.6,0.1868326]
[1771315341975,0.00410001,1992.0,1991.6,0.1868326]
[1771315342776,0.00410001,1991.9,1991.6,5.02083647]
[1771315342965,0.00410001,1992.0,1991.6,5.20766907]
[1771315343369,0.00410001,1992.0,1991.7,0.1868326]
[1771315345485,0.0011,1992.1,1991.8,1.25514609]
[1771315345692,0.00410001,1992.0,1991.8,1.25514609]
[1771315347492,0.0011,1992.1,1991.8,1.25514609]
[1771315347700,0.00410001,1992.0,1991.8,1.25514609]
[1771315348485,0.47377595,1991.9,1991.7,0.902]
[1771315348687,0.46967594,1991.9,1991.7,0.902]
[1771315348886,0.00410001,1991.8,1991.6,1.25522463]
[1771315349189,0.00410001,1991.9,1991.6,1.25522463]
[1771315349605,0.00410001,1991.9,1991.5,2.15928432]
[1771315349606,0.00410001,1991.8,1991.5,2.15928432]
[1771315349786,0.00410001,1991.8,1991.5,0.001]
[1771315350198,0.47377595,1991.8,1991.5,0.001]
[1771315351426,0.46967594,1991.8,1991.5,0.001]
[1771315351608,0.46967594,1991.6,1991.4,0.001]
[1771315352002,0.00310001,1991.5,1991.4,0.001]
[1771315355314,0.47177595,1991.4,1991.1,0.001]
[1771315355506,0.46967594,1991.4,1991.1,0.001]
[1771315356211,0.46967594,1991.3,1990.8,0.001]
[1771315358095,1.2555243,1991.2,1990.8,0.001]
[1771315358307,0.46967594,1991.1,1990.8,0.001]
[1771315361034,0.46967594,1990.9,1990.8,0.001]
[1771315361197,5.02241775,1991.1,1990.8,0.001]
[1771315361198,1.72530549,1991.1,1990.8,0.001]
[1771315362326,0.46967594,1991.0,1990.8,0.001]
[1771315362637,0.46967594,1991.0,1990.6,0.001]
[1771315362855,0.46967594,1990.9,1990.5,0.001]
[1771315364151,2.16469768,1991.0,1990.5,0.001]
[1771315364444,2.64167235,1991.0,1990.5,0.001]
[1771315365040,0.47697467,1990.9,1990.5,0.001]
[1771315367842,0.47697467,1990.9,1990.6,0.001]
[1771315368613,1.73269007,1990.9,1990.6,0.001]
[1771315369639,0.47697467,1990.9,1990.6,0.001]
[1771315369938,1.25569373,1991.0,1990.6,0.001]
[1771315371239,1.38697467,1991.1,1990.6,0.001]
[1771315371422,0.45239481,1991.0,1990.6,0.001]
[1771315371842,1.70807725,1991.0,1990.6,0.001]
[1771315372747,0.45239481,1990.9,1990.6,0.001]
[1771315373815,1.25568244,1991.0,1990.6,0.001]
[1771315374221,0.45239481,1991.0,1990.6,0.001]
[1771315374422,0.912,1991.1,1990.6,0.1898326]
[1771315376151,0.912,1991.1,1990.7,1.25583965]
[1771315376651,0.912,1991.1,1990.6,1.44568531]
[1771315377930,0.902,1991.1,1990.6,1.44568531]
[1771315378255,2.60998476,1991.1,1990.6,1.25685271]
[1771315378460,1.35439481,1991.1,1990.6,1.25685271]
[1771315379149,2.60998378,1991.1,1990.6,1.25685271]
[1771315379446,0.45239481,1991.0,1990.6,0.001]
[1771315380150,1.70917815,1991.0,1990.7,0.001]
[1771315380464,0.0011,1991.0,1990.7,0.1898326]
[1771315381272,1.25676872,1991.0,1990.7,0.001]
[1771315381628,1.70916353,1991.0,1990.7,0.001]
[1771315382143,0.0011,1991.0,1990.7,0.001]
[1771315384462,1.70019089,1991.1,1990.7,0.001]
[1771315390066,1.70799553,1991.1,1990.4,1.41881096]
[1771315390367,1.70799553,1991.1,1990.5,0.1628326]
[1771315391357,1.70799553,1991.1,1990.5,0.1508326]
[1771315392165,1.70799553,1991.1,1990.5,1.40677079]
[1771315393997,1.70799553,1991.1,1990.6,0.001]
[1771315394275,0.45349481,1991.0,1990.6,0.001]
[1771315394480,1.70914743,1991.0,1990.6,0.001]
[1771315401790,0.0011,1991.0,1990.6,0.1518326]
[1771315403377,0.0011,1991.0,1990.7,1.25583965]
[1771315403565,0.0011,1991.0,1990.7,1.40667225]
[1771315405701,0.0011,1991.3,1991.0,0.1508326]
[1771315405905,0.0011,1991.4,1990.8,0.1508326]
[1771315406063,0.00340001,1991.4,1990.8,0.1508326]
[1771315406463,0.0011,1990.9,1990.8,0.1508326]
[1771315406769,0.00340001,1991.4,1990.8,0.1508326]
[1771315406969,0.0011,1991.2,1990.8,0.1508326]
[1771315407291,0.0011,1991.4,1991.0,0.1508326]
[1771315407466,0.0011,1991.7,1991.4,0.1508326]
[1771315407668,0.00230001,1991.6,1991.4,0.1508326]
[1771315409266,0.0011,1991.7,1991.4,0.1508326]
[1771315409574,0.0011,1991.9,1991.6,0.1508326]
[1771315409759,0.00340001,1991.9,1991.6,0.1508326]
[1771315411977,0.0011,1991.9,1991.7,1.25520911]
[1771315413795,0.0011,1992.0,1991.8,0.1508326]
[1771315413998,0.00450001,1992.0,1991.6,5.17191069]
[1771315414296,0.00450001,1992.0,1991.7,1.25515805]
[1771315414996,0.00340001,1991.9,1991.4,1.40623081]
[1771315415167,0.0011,1992.0,1991.5,0.1508326]
[1771315415366,0.00340001,1991.9,1991.5,0.1508326]
[1771315415968,0.00340001,1991.8,1991.5,0.1508326]
[1771315416187,0.00340001,1991.9,1991.5,1.40610505]
[1771315416588,0.0011,1992.0,1991.5,1.40610505]
[1771315416799,0.00340001,1991.9,1991.5,1.40610505]
[1771315417300,0.00340001,1991.9,1991.6,0.1508326]
[1771315419203,0.0011,1991.8,1991.6,1.40604881]
[1771315420705,0.0011,1991.8,1991.6,1.25521621]
[1771315421496,0.0011,1991.8,1991.2,0.893]
[1771315421497,0.49600409,1991.8,1991.2,1.25547306]
[1771315421698,0.00340001,1991.7,1991.2,2.15247306]
[1771315421878,0.4983041,1991.7,1991.2,0.897]
[1771315422679,0.00340001,1991.6,1991.2,1.0478326]
[1771315422879,0.00340001,1991.7,1991.2,1.0478326]
[1771315423500,0.00340001,1991.6,1991.3,1.25546125]
[1771315423708,1.75115588,1991.8,1991.2,2.30330696]
[1771315423709,0.00340001,1991.7,1991.2,2.30330696]
[1771315424494,0.00340001,1991.7,1991.2,0.897]
[1771315424495,0.48604196,1991.7,1991.2,0.897]
[1771315424801,0.00340001,1991.6,1991.2,0.897]
[1771315425001,0.00340001,1991.6,1991.1,1.25557754]
[1771315425200,0.00340001,1991.5,1991.1,1.25557754]
[1771315425398,0.00340001,1991.6,1991.1,1.25557754]
[1771315425599,0.48604196,1991.6,1991.1,1.25557754]
[1771315426609,0.00340001,1991.6,1991.1,1.40641014]
[1771315426811,0.48604196,1991.6,1991.1,1.25557754]
[1771315427406,0.48264195,1991.6,1991.1,1.25557754]
[1771315428284,0.48264195,1991.6,1991.1,0.1508326]
[1771315428489,1.73893697,1991.8,1991.1,0.1508326]
[1771315428690,0.00340001,1991.6,1991.1,0.1508326]
[1771315429006,1.73893697,1991.8,1991.1,0.1508326]
[1771315429209,0.48264195,1991.7,1990.9,1.40654609]
[1771315429513,0.48604196,1991.7,1990.9,1.4354129]
[1771315430612,1.74131063,1991.7,1991.0,0.1508326]
[1771315430787,1.74131063,1991.7,1991.2,0.001]
[1771315431708,0.49041802,1991.6,1991.2,0.001]
[1771315432519,1.74902868,1991.7,1991.2,0.001]
[1771315432726,0.49041802,1991.6,1991.2,0.001]
[1771315433212,0.00340001,1991.5,1991.2,0.001]
[1771315433983,0.49381803,1991.5,1991.2,0.001]
[1771315434599,0.49041802,1991.4,1991.2,0.001]
[1771315434933,0.49041802,1991.3,1991.2,0.001]
[1771315437328,1.74587927,1991.3,1991.2,0.001]
[1771315437537,1.25542637,1991.4,1991.2,0.001]
[1771315437819,1.25542637,1991.4,1991.0,0.001]
[1771315437820,0.49041802,1991.3,1991.0,0.001]
[1771315438004,0.49041802,1991.2,1991.0,0.001]
[1771315439236,0.00240001,1991.3,1991.0,0.001]
[1771315439406,1.2555243,1991.2,1991.0,0.001]
[1771315439993,1.74580412,1991.5,1991.0,0.001]
[1771315440292,0.00240001,1991.3,1991.0,0.001]
[1771315441188,0.49281803,1991.3,1991.0,0.001]
[1771315441393,1.2555243,1991.2,1991.0,0.001]
[1771315441594,1.74594232,1991.2,1991.0,0.001]
[1771315442413,0.49041802,1991.2,1991.0,0.001]
[1771315442921,1.25550902,1991.3,1991.0,0.001]
[1771315443105,0.00240001,1991.2,1991.0,0.001]
[1771315443418,5.02134069,1991.6,1991.0,0.001]
[1771315443419,0.49041802,1991.7,1991.0,1.40745008]
[1771315443622,0.911,1991.5,1991.1,0.1508326]
[1771315444192,0.911,1991.5,1991.0,0.001]
[1771315444193,0.49041802,1991.4,1991.0,0.001]
[1771315444393,0.49281803,1991.4,1990.9,0.001]
[1771315444599,0.00240001,1991.4,1990.9,1.40753765]
[1771315445195,0.49041802,1991.6,1990.9,1.40753765]
[1771315445404,0.00240001,1991.5,1991.0,1.40645672]
[1771315445823,0.00240001,1991.5,1991.0,0.1508326]
[1771315446027,0.00240001,1991.5,1991.0,1.40648003]
[1771315446228,0.00240001,1991.5,1991.0,0.1508326]
[1771315446525,1.74569016,1991.6,1991.0,0.1508326]
[1771315446725,0.00240001,1991.4,1991.0,1.40647024]
[1771315450733,0.00240001,1991.4,1990.9,5.02383075]
[1771315450734,0.00240001,1991.4,1990.9,1.25667273]
[1771315451107,0.00240001,1991.4,1990.9,1.40750533]
[1771315452737,0.00240001,1991.4,1990.9,1.40250533]
[1771315455234,0.00240001,1991.4,1991.0,0.001]
[1771315455538,0.00350001,1991.4,1991.0,0.1518326]
[1771315457442,0.00240001,1991.3,1991.1,1.40641996]
[1771315457642,0.0011,1991.4,1991.2,0.1508326]
[1771315458615,0.0011,1991.7,1991.5,0.1508326]
[1771315458816,0.0011,1991.8,1991.5,0.1508326]
[1771315459017,0.0011,1991.9,1991.5,0.1508326]
[1771315459419,0.0011,1991.9,1991.7,0.1508326]
[1771315461619,0.0011,1991.9,1991.6,1.25527214]
[1771315461831,0.0011,1991.9,1991.6,1.40610474]
[1771315462129,0.0011,1991.9,1991.7,0.1508326]
[1771315463531,0.0011,1991.9,1991.8,1.25514609]
[1771315465544,0.0011,1991.9,1991.6,1.25522343]
[1771315466129,0.0011,1991.9,1991.3,5.02183061]
[1771315466130,0.0011,1991.9,1991.3,5.17253836]
[1771315466947,0.48403172,1991.9,1991.3,1.40629385]
[1771315467140,0.48403172,1991.9,1991.1,5.17306446]
[1771315467340,0.48403172,1991.9,1991.2,0.1508326]
[1771315468033,1.7391148,1991.9,1991.8,0.001]
[1771315468230,0.0011,1991.8,1991.3,1.25546125]
[1771315468624,0.0011,1991.8,1991.7,0.001]
[1771315470346,0.48403172,1991.8,1991.7,0.001]
[1771315470646,0.48403172,1991.8,1991.5,0.001]
[1771315470948,0.48293172,1991.7,1991.5,0.001]
[1771315472249,1.73819545,1991.7,1991.5,0.001]
[1771315474551,0.48293172,1991.6,1991.0,0.001]
[1771315475323,0.48293172,1991.6,1991.0,0.1528326]
[1771315476860,0.48293172,1991.6,1991.1,1.25558736]
[1771315477252,1.73819545,1991.7,1991.1,1.40741996]
[1771315480258,1.73819545,1991.7,1991.1,1.40841996]
[1771315480461,0.0011,1991.6,1991.1,1.40841996]
[1771315481547,0.48403172,1991.6,1991.1,0.001]
[1771315482144,0.48293172,1991.5,1991.1,0.001]
[1771315482337,0.48293172,1991.3,1991.1,0.001]
[1771315482663,1.25539821,1991.4,1991.1,0.001]
[1771315482862,1.73832993,1991.4,1991.1,0.001]
[1771315483037,1.25538461,1991.5,1991.1,0.001]
[1771315483766,1.73934938,1991.6,1991.1,0.001]
[1771315488758,0.0011,1991.6,1991.1,0.1528326]
[1771315491239,0.0011,1991.6,1991.2,1.4073569]
[1771315491436,0.0011,1991.6,1991.2,0.1518326]
[1771315491437,0.0001,1991.6,1991.2,0.1518326]
[1771315493349,0.0011,1991.5,1991.2,1.40731354]
[1771315494773,0.0011,1991.5,1991.3,0.1518326]
[1771315495270,0.0011,1991.8,1991.3,0.1518326]
[1771315495454,0.0011,1991.8,1991.5,0.1518326]
[1771315498370,0.0011,1991.9,1991.7,0.1518326]
[1771315498569,0.0022,1991.9,1991.7,0.1518326]
[1771315498774,0.0011,1991.9,1991.7,0.1518326]
[1771315500775,0.45972468,1991.8,1991.1,0.001]
[1771315500945,0.45972468,1991.7,1991.1,0.001]
[1771315501147,0.45972468,1991.5,1990.9,0.001]
[1771315501343,0.45972468,1991.5,1990.9,1.25671056]
[1771315502452,0.45972468,1991.5,1990.9,1.40854316]
[1771315502949,0.45972468,1991.4,1990.9,0.001]
[1771315504866,0.45972468,1991.2,1990.9,0.001]
[1771315505050,0.45972468,1991.2,1991.1,0.001]
[1771315507460,1.71524898,1991.2,1991.1,0.001]
[1771315509860,0.45972468,1991.1,1990.9,0.001]
[1771315510059,0.45972468,1991.1,1990.7,0.001]
[1771315511869,1.7153751,1991.0,1990.7,0.001]
[1771315512193,0.45972468,1990.9,1990.7,0.001]
[1771315513562,1.25565042,1991.0,1990.7,0.001]
[1771315513762,1.25546125,1991.3,1990.7,0.001]
[1771315514105,1.71518593,1991.3,1990.7,0.001]
[1771315516200,1.71518593,1991.3,1990.7,1.25683965]
[1771315516806,1.71518593,1991.3,1990.7,1.40967225]
[1771315517096,1.71518593,1991.3,1990.7,0.1538326]
[1771315517394,0.0011,1991.1,1990.8,0.001]
[1771315522873,0.0011,1991.1,1990.8,0.1538326]
[1771315523413,0.0011,1991.1,1990.8,0.001]
[1771315524717,0.48192401,1991.1,1990.8,0.001]
[1771315525397,0.0011,1991.1,1990.8,0.001]
[1771315525984,1.7375162,1991.1,1990.8,0.001]
[1771315526179,0.48192401,1991.1,1990.8,0.001]
[1771315528401,0.0011,1991.1,1990.8,0.001]
[1771315530108,0.0011,1991.1,1990.9,0.001]
[1771315530311,0.0011,1991.0,1990.9,0.001]
[1771315533481,0.48192401,1991.0,1990.6,0.001]
[1771315535382,0.48082401,1990.8,1990.6,0.001]
[1771315538621,0.48082401,1990.6,1990.3,0.001]
[1771315539417,5.02335861,1990.8,1990.3,0.1538326]
[1771315539418,1.2558046,1990.8,1990.3,0.1538326]
[1771315539820,1.25675633,1991.0,1990.4,5.40381234]
[1771315539986,1.25675633,1991.0,1990.4,5.55664494]
[1771315540696,1.73758034,1991.0,1990.4,0.1528326]
[1771315540905,1.73758034,1991.0,1990.3,1.25706956]
[1771315540906,1.73758034,1991.0,1990.3,0.001]
[1771315541114,1.73758034,1991.0,1990.3,0.1538326]
[1771315541315,0.48082401,1990.9,1990.3,0.1538326]
[1771315542825,1.73660058,1990.8,1990.3,0.001]
[1771315543225,1.73660058,1990.8,1990.4,0.001]
[1771315543420,0.0011,1990.7,1990.4,0.001]
[1771315543625,0.0011,1990.7,1990.4,0.1538326]
[1771315544773,0.0011,1990.7,1990.4,0.001]
[1771315546752,0.48574378,1990.7,1990.4,0.001]
[1771315547250,0.0011,1990.7,1990.4,0.001]
[1771315548946,0.0011,1990.7,1990.4,0.1538326]
[1771315549166,0.0011,1990.8,1990.4,5.55764494]
[1771315549337,0.0011,1990.8,1990.4,0.001]
[1771315551428,0.0011,1990.8,1990.4,0.1538326]
[1771315552534,0.008689,1990.7,1990.4,0.1538326]
[1771315555161,0.008689,1990.7,1990.4,1.40985188]
[1771315555362,0.0011,1991.0,1990.7,0.1528326]
[1771315556649,0.0011,1990.8,1990.7,0.1528326]
[1771315556839,0.0011,1991.1,1990.7,0.1528326]
[1771315557044,1.25661143,1991.3,1990.9,0.1528326]
[1771315557045,0.0011,1991.3,1990.9,0.1528326]
[1771315557562,0.0011,1991.3,1990.9,1.40851905]
[1771315557867,0.0011,1991.3,1991.0,0.1528326]
[1771315558364,0.4605775,1991.5,1990.8,0.1528326]
[1771315558564,0.4605775,1991.5,1990.6,6.65967289]
[1771315558741,0.4605775,1991.5,1990.7,0.1528326]
[1771315559455,1.25539821,1991.4,1990.9,0.1528326]
[1771315559648,1.25646581,1991.5,1990.9,0.1528326]
[1771315560371,0.0011,1991.5,1991.1,0.1528326]
[1771315560668,0.0011,1991.6,1991.3,0.1528326]
[1771315560866,0.0011,1991.8,1991.3,0.1528326]